[Event "*** Titled Tuesday Blitz"]
[Site "Chess.com"]
[Date "2020.04.21"]
[Round "2"]
[White "artichaud"]
[Black "Taron_Shagbazyan"]
[Result "0-1"]
[WhiteElo "2223"]
[BlackElo "2632"]
[TimeControl "180+1"]
[EndTime "10:18:17 PDT"]
[Termination "Taron_Shagbazyan won by resignation"]

1. e4 {[%clk 0:03:00.7]} 1... e5 {[%clk 0:02:59.3]} 2. Nf3 {[%clk 0:03:00.6]}
2... Nc6 {[%clk 0:02:58.1]} 3. d3 {[%clk 0:03:00.7]} 3... g6 {[%clk 0:02:53.9]}
4. Be2 {[%clk 0:03:00.1]} 4... Bg7 {[%clk 0:02:54.2]} 5. O-O {[%clk 0:03:00.1]}
5... Nge7 {[%clk 0:02:54.4]} 6. c3 {[%clk 0:03:00.1]} 6... O-O {[%clk
0:02:53.8]} 7. Re1 {[%clk 0:02:57.3]} 7... d6 {[%clk 0:02:54]} 8. d4 {[%clk
0:02:50.1]} 8... exd4 {[%clk 0:02:36.7]} 9. cxd4 {[%clk 0:02:49.6]} 9... d5
{[%clk 0:02:35.8]} 10. e5 {[%clk 0:02:46.2]} 10... f6 {[%clk 0:02:25.4]} 11.
exf6 {[%clk 0:02:31.5]} 11... Bxf6 {[%clk 0:02:26.3]} 12. Nc3 {[%clk 0:02:29.4]}
12... Bg4 {[%clk 0:02:15.8]} 13. Be3 {[%clk 0:02:25.8]} 13... a6 {[%clk
0:01:39.3]} 14. h3 {[%clk 0:02:21.8]} 14... Be6 {[%clk 0:01:39.2]} 15. Bg5
{[%clk 0:02:08.4]} 15... Qd6 {[%clk 0:01:32]} 16. Bxf6 {[%clk 0:02:07.6]} 16...
Rxf6 {[%clk 0:01:32.9]} 17. Rc1 {[%clk 0:01:54.4]} 17... Raf8 {[%clk 0:01:31.7]}
18. Na4 {[%clk 0:01:54.2]} 18... Bc8 {[%clk 0:01:25.8]} 19. Nc5 {[%clk
0:01:53.7]} 19... Rf4 {[%clk 0:01:21.5]} 20. Nd3 {[%clk 0:01:27.5]} 20... Re4
{[%clk 0:00:59.8]} 21. Nc5 {[%clk 0:01:16.5]} 21... Ref4 {[%clk 0:00:59.5]} 22.
Nd3 {[%clk 0:01:16.4]} 22... R4f7 {[%clk 0:00:56.8]} 23. Nde5 {[%clk 0:01:12.4]}
23... Nxe5 {[%clk 0:00:54.9]} 24. dxe5 {[%clk 0:01:12.3]} 24... Qb6 {[%clk
0:00:51.6]} 25. Qd4 {[%clk 0:01:06]} 25... Qxd4 {[%clk 0:00:50.3]} 26. Nxd4
{[%clk 0:01:06.9]} 26... c6 {[%clk 0:00:48.3]} 27. f3 {[%clk 0:01:06.1]} 27...
Rf4 {[%clk 0:00:48.1]} 28. Red1 {[%clk 0:00:58.5]} 28... Nf5 {[%clk 0:00:47.8]}
29. Nxf5 {[%clk 0:00:55.4]} 29... R4xf5 {[%clk 0:00:45.1]} 30. Re1 {[%clk
0:00:49.8]} 30... Rxe5 {[%clk 0:00:44.3]} 31. Kf2 {[%clk 0:00:49.2]} 31... Rfe8
{[%clk 0:00:43.8]} 32. b4 {[%clk 0:00:47.6]} 32... Kf7 {[%clk 0:00:43.6]} 33.
Bf1 {[%clk 0:00:46.8]} 33... Rxe1 {[%clk 0:00:42.7]} 34. Rxe1 {[%clk 0:00:47.7]}
34... Rxe1 {[%clk 0:00:42.9]} 35. Kxe1 {[%clk 0:00:47.7]} 35... Kf6 {[%clk
0:00:43.8]} 36. Kd2 {[%clk 0:00:47.7]} 36... Ke5 {[%clk 0:00:44.1]} 37. a3
{[%clk 0:00:45.2]} 37... g5 {[%clk 0:00:41.5]} 38. g3 {[%clk 0:00:45]} 38... h6
{[%clk 0:00:36.4]} 39. Ke3 {[%clk 0:00:43.1]} 39... d4+ {[%clk 0:00:35.6]} 40.
Kf2 {[%clk 0:00:43.1]} 40... b6 {[%clk 0:00:35.1]} 41. h4 {[%clk 0:00:40.3]}
41... a5 {[%clk 0:00:33.7]} 42. hxg5 {[%clk 0:00:32.5]} 42... hxg5 {[%clk
0:00:33.7]} 43. bxa5 {[%clk 0:00:28.5]} 43... bxa5 {[%clk 0:00:34.6]} 44. Bc4
{[%clk 0:00:28.9]} 44... c5 {[%clk 0:00:32.7]} 45. Ke2 {[%clk 0:00:27.3]} 45...
Bb7 {[%clk 0:00:31.4]} 46. Kf2 {[%clk 0:00:26.6]} 46... Bc6 {[%clk 0:00:30.2]}
47. Ke2 {[%clk 0:00:25.2]} 47... Ba4 {[%clk 0:00:30.2]} 48. Kf2 {[%clk
0:00:25.3]} 48... Bd1 {[%clk 0:00:29.9]} 49. Kg2 {[%clk 0:00:21.8]} 49... a4
{[%clk 0:00:29.1]} 50. Kf2 {[%clk 0:00:21.7]} 50... Bb3 {[%clk 0:00:29.4]} 51.
Bb5 {[%clk 0:00:18.3]} 51... c4 {[%clk 0:00:29.4]} 52. Ke1 {[%clk 0:00:16.9]}
52... d3 {[%clk 0:00:26.7]} 0-1

[Event "*** Titled Tuesday Blitz"]
[Site "Chess.com"]
[Date "2020.04.21"]
[Round "2"]
[White "IAgrest"]
[Black "Grandmaster2B"]
[Result "0-1"]
[WhiteElo "2276"]
[BlackElo "2535"]
[TimeControl "180+1"]
[EndTime "10:18:17 PDT"]
[Termination "Grandmaster2B won on time"]

1. e4 {[%clk 0:03:00.9]} 1... c5 {[%clk 0:02:59.8]} 2. Nf3 {[%clk 0:03:00.6]}
2... d6 {[%clk 0:02:59.8]} 3. d4 {[%clk 0:03:00.8]} 3... cxd4 {[%clk 0:03:00.1]}
4. Nxd4 {[%clk 0:03:01.7]} 4... Nf6 {[%clk 0:03:00.7]} 5. Nc3 {[%clk 0:03:01.6]}
5... a6 {[%clk 0:03:01]} 6. Bg5 {[%clk 0:03:02.1]} 6... e6 {[%clk 0:03:00.9]} 7.
f4 {[%clk 0:03:02.3]} 7... Be7 {[%clk 0:02:55.4]} 8. Qf3 {[%clk 0:03:01.7]} 8...
Qc7 {[%clk 0:02:55.5]} 9. O-O-O {[%clk 0:03:01.3]} 9... Nbd7 {[%clk 0:02:49.7]}
10. Bd3 {[%clk 0:03:00.6]} 10... b5 {[%clk 0:02:44.5]} 11. Rhe1 {[%clk
0:02:59.9]} 11... Bb7 {[%clk 0:02:43.3]} 12. Kb1 {[%clk 0:02:54.4]} 12... Nc5
{[%clk 0:02:34.9]} 13. f5 {[%clk 0:02:40.6]} 13... e5 {[%clk 0:02:14.2]} 14.
Bxf6 {[%clk 0:02:22.7]} 14... Bxf6 {[%clk 0:02:02.5]} 15. Bxb5+ {[%clk
0:02:01.4]} 15... Kf8 {[%clk 0:01:51.1]} 16. Nb3 {[%clk 0:01:44.3]} 16... Nxb3
{[%clk 0:01:31.8]} 17. axb3 {[%clk 0:01:31.1]} 17... axb5 {[%clk 0:01:31.4]} 18.
Nxb5 {[%clk 0:01:29]} 18... Qa5 {[%clk 0:01:29.9]} 19. Na3 {[%clk 0:01:27.9]}
19... Be7 {[%clk 0:01:13.6]} 20. f6 {[%clk 0:01:18.8]} 20... Bxf6 {[%clk
0:00:57.9]} 21. Rf1 {[%clk 0:01:14.5]} 21... Qb4 {[%clk 0:00:43.6]} 22. Nc4
{[%clk 0:01:03.7]} 22... Rd8 {[%clk 0:00:26]} 23. Nxe5 {[%clk 0:00:50]} 23...
Qxe4 {[%clk 0:00:22.7]} 24. Qxe4 {[%clk 0:00:21.8]} 24... Bxe4 {[%clk
0:00:23.6]} 25. Ng4 {[%clk 0:00:19.7]} 25... Be7 {[%clk 0:00:20.6]} 26. g3
{[%clk 0:00:19]} 26... h5 {[%clk 0:00:17.6]} 27. Ne3 {[%clk 0:00:19.1]} 27... h4
{[%clk 0:00:16.8]} 28. Nd5 {[%clk 0:00:18.2]} 28... hxg3 {[%clk 0:00:10]} 29.
hxg3 {[%clk 0:00:19.1]} 29... Bxd5 {[%clk 0:00:09.3]} 30. Rxd5 {[%clk 0:00:20]}
30... Rh3 {[%clk 0:00:09.2]} 31. g4 {[%clk 0:00:19.2]} 31... Rg3 {[%clk
0:00:09.2]} 32. g5 {[%clk 0:00:19.1]} 32... Rxg5 {[%clk 0:00:08.4]} 33. Rd3
{[%clk 0:00:16.9]} 33... g6 {[%clk 0:00:05.6]} 34. b4 {[%clk 0:00:17.1]} 34...
Rb5 {[%clk 0:00:04.4]} 35. c3 {[%clk 0:00:17.1]} 35... f5 {[%clk 0:00:04.5]} 36.
Rg3 {[%clk 0:00:16.3]} 36... Kf7 {[%clk 0:00:04.2]} 37. Kc2 {[%clk 0:00:16.4]}
37... g5 {[%clk 0:00:03.8]} 38. Rh1 {[%clk 0:00:16.1]} 38... Kg6 {[%clk
0:00:03.5]} 39. Rgh3 {[%clk 0:00:15.7]} 39... g4 {[%clk 0:00:02.5]} 40. Rh6+
{[%clk 0:00:15.8]} 40... Kg5 {[%clk 0:00:03.2]} 41. R1h5+ {[%clk 0:00:14.2]}
41... Kf4 {[%clk 0:00:03.8]} 42. Re6 {[%clk 0:00:13.7]} 42... Bg5 {[%clk
0:00:03.8]} 43. Rg6 {[%clk 0:00:11.7]} 43... Be7 {[%clk 0:00:03.8]} 44. Re6
{[%clk 0:00:11.8]} 44... Rb7 {[%clk 0:00:03.9]} 45. Rh7 {[%clk 0:00:10.1]} 45...
Rdd7 {[%clk 0:00:03.7]} 46. Rf7 {[%clk 0:00:06.7]} 46... g3 {[%clk 0:00:03.5]}
47. Rg6 {[%clk 0:00:02.8]} 47... Bg5 {[%clk 0:00:03.3]} 48. Rxd7 {[%clk
0:00:02.1]} 48... Rxd7 {[%clk 0:00:04.2]} 0-1

[Event "*** Titled Tuesday Blitz"]
[Site "Chess.com"]
[Date "2020.04.21"]
[Round "2"]
[White "FranciscodelaF"]
[Black "Morshynska"]
[Result "1-0"]
[WhiteElo "2412"]
[BlackElo "2124"]
[TimeControl "180+1"]
[EndTime "10:18:17 PDT"]
[Termination "FranciscodelaF won on time"]

1. d4 {[%clk 0:03:00.9]} 1... d5 {[%clk 0:02:58.9]} 2. c4 {[%clk 0:03:00.6]}
2... c6 {[%clk 0:02:58.5]} 3. Nf3 {[%clk 0:02:48.2]} 3... Nf6 {[%clk 0:02:58]}
4. Qb3 {[%clk 0:02:46.8]} 4... e6 {[%clk 0:02:46.6]} 5. Bg5 {[%clk 0:02:41.9]}
5... h6 {[%clk 0:02:43.7]} 6. Bh4 {[%clk 0:02:41.7]} 6... Be7 {[%clk 0:02:43.4]}
7. e3 {[%clk 0:02:41.2]} 7... Nbd7 {[%clk 0:02:43]} 8. Nc3 {[%clk 0:02:40.9]}
8... Ne4 {[%clk 0:02:40.8]} 9. Bxe7 {[%clk 0:02:28.7]} 9... Qxe7 {[%clk
0:02:41.7]} 10. Nxe4 {[%clk 0:02:29.2]} 10... dxe4 {[%clk 0:02:42.4]} 11. Nd2
{[%clk 0:02:29.4]} 11... f5 {[%clk 0:02:40.6]} 12. O-O-O {[%clk 0:02:19.7]}
12... Nf6 {[%clk 0:02:34.6]} 13. Kb1 {[%clk 0:02:17.6]} 13... O-O {[%clk
0:02:28.4]} 14. Be2 {[%clk 0:02:17]} 14... Kh8 {[%clk 0:02:27.5]} 15. f3 {[%clk
0:02:16.5]} 15... e5 {[%clk 0:02:15.9]} 16. d5 {[%clk 0:02:00.3]} 16... exf3
{[%clk 0:02:07.3]} 17. Nxf3 {[%clk 0:01:59.5]} 17... Ne4 {[%clk 0:02:01.8]} 18.
Rhf1 {[%clk 0:01:56.7]} 18... Bd7 {[%clk 0:01:47.8]} 19. d6 {[%clk 0:01:20.2]}
19... Qf6 {[%clk 0:01:15.1]} 20. Qxb7 {[%clk 0:01:14.5]} 20... Rfd8 {[%clk
0:00:51.6]} 21. Ka1 {[%clk 0:01:07.1]} 21... Rab8 {[%clk 0:00:46.7]} 22. Qa6
{[%clk 0:01:06]} 22... Nc5 {[%clk 0:00:35.7]} 23. Qa5 {[%clk 0:01:03.4]} 23...
e4 {[%clk 0:00:20.2]} 24. Nd4 {[%clk 0:01:02.7]} 24... Qxd6 {[%clk 0:00:16.3]}
25. Nxf5 {[%clk 0:00:50.8]} 25... Qe5 {[%clk 0:00:14.9]} 26. Nd4 {[%clk
0:00:46.3]} 26... Nd3 {[%clk 0:00:13.1]} 27. Qxe5 {[%clk 0:00:44.2]} 27... Nxe5
{[%clk 0:00:14]} 28. c5 {[%clk 0:00:34.4]} 28... Kg8 {[%clk 0:00:13.3]} 29. h3
{[%clk 0:00:33.9]} 29... Re8 {[%clk 0:00:12.4]} 30. b3 {[%clk 0:00:25.5]} 30...
Re7 {[%clk 0:00:12.6]} 31. Nc2 {[%clk 0:00:25.6]} 31... Be6 {[%clk 0:00:11.6]}
32. Kb2 {[%clk 0:00:25.2]} 32... Bd5 {[%clk 0:00:11.7]} 33. Kc3 {[%clk
0:00:23.8]} 33... a5 {[%clk 0:00:10.7]} 34. Nd4 {[%clk 0:00:24]} 34... Nd7
{[%clk 0:00:09.6]} 35. Nf5 {[%clk 0:00:21.9]} 35... Rf7 {[%clk 0:00:08.4]} 36.
Bh5 {[%clk 0:00:21.6]} 36... Rf6 {[%clk 0:00:07.8]} 37. Ne7+ {[%clk 0:00:22]}
37... Kf8 {[%clk 0:00:07.2]} 38. Rxf6+ {[%clk 0:00:22.3]} 38... Nxf6 {[%clk
0:00:08.1]} 39. Ng6+ {[%clk 0:00:21.4]} 39... Kg8 {[%clk 0:00:07.6]} 40. Nf4
{[%clk 0:00:22.3]} 40... a4 {[%clk 0:00:06.2]} 41. Nxd5 {[%clk 0:00:20.9]} 41...
cxd5 {[%clk 0:00:06.7]} 42. Be2 {[%clk 0:00:20.2]} 42... axb3 {[%clk 0:00:05.6]}
43. axb3 {[%clk 0:00:21.1]} 43... Ra8 {[%clk 0:00:05.4]} 44. b4 {[%clk 0:00:21]}
44... Kf7 {[%clk 0:00:05.2]} 45. Kd4 {[%clk 0:00:21.2]} 45... Ke6 {[%clk
0:00:05.4]} 46. Rb1 {[%clk 0:00:20.6]} 46... Kd7 {[%clk 0:00:04.8]} 47. b5
{[%clk 0:00:20.8]} 47... Kc7 {[%clk 0:00:05.1]} 48. Ke5 {[%clk 0:00:21.2]} 48...
Ra3 {[%clk 0:00:04.4]} 49. b6+ {[%clk 0:00:21.5]} 49... Kb7 {[%clk 0:00:04.1]}
50. c6+ {[%clk 0:00:21.5]} 50... Kb8 {[%clk 0:00:01.8]} 51. c7+ {[%clk
0:00:21.5]} 51... Kb7 {[%clk 0:00:01.8]} 52. Bb5 {[%clk 0:00:21.7]} 1-0

[Event "*** Titled Tuesday Blitz"]
[Site "Chess.com"]
[Date "2020.04.21"]
[Round "2"]
[White "crywolf1986"]
[Black "calin_dragomirescu"]
[Result "1-0"]
[WhiteElo "2586"]
[BlackElo "2302"]
[TimeControl "180+1"]
[EndTime "10:18:18 PDT"]
[Termination "crywolf1986 won by resignation"]

1. d4 {[%clk 0:03:00.9]} 1... g6 {[%clk 0:02:59.7]} 2. Nf3 {[%clk 0:03:01.6]}
2... Bg7 {[%clk 0:03:00.1]} 3. c4 {[%clk 0:02:54.5]} 3... Nf6 {[%clk 0:02:59.9]}
4. g3 {[%clk 0:02:53.7]} 4... O-O {[%clk 0:02:59.9]} 5. Bg2 {[%clk 0:02:50.8]}
5... d6 {[%clk 0:03:00.4]} 6. O-O {[%clk 0:02:47]} 6... Nbd7 {[%clk 0:03:00.6]}
7. Nc3 {[%clk 0:02:42.9]} 7... c6 {[%clk 0:03:00.9]} 8. e3 {[%clk 0:02:42.1]}
8... e5 {[%clk 0:02:59.3]} 9. b3 {[%clk 0:02:41.1]} 9... e4 {[%clk 0:02:56.8]}
10. Nd2 {[%clk 0:02:40.1]} 10... d5 {[%clk 0:02:57.3]} 11. a4 {[%clk 0:02:38.6]}
11... a5 {[%clk 0:02:56.2]} 12. Ba3 {[%clk 0:02:38.3]} 12... Re8 {[%clk
0:02:56.7]} 13. Rc1 {[%clk 0:02:37.2]} 13... h5 {[%clk 0:02:55.4]} 14. cxd5
{[%clk 0:02:35]} 14... cxd5 {[%clk 0:02:54.1]} 15. Nb5 {[%clk 0:02:33.7]} 15...
Bf8 {[%clk 0:02:41.2]} 16. Bxf8 {[%clk 0:02:32.2]} 16... Rxf8 {[%clk 0:02:36.1]}
17. f3 {[%clk 0:02:31.7]} 17... exf3 {[%clk 0:02:32.9]} 18. Qxf3 {[%clk
0:02:32.6]} 18... Ng4 {[%clk 0:02:23.1]} 19. h3 {[%clk 0:02:28.4]} 19... Nh6
{[%clk 0:02:19]} 20. e4 {[%clk 0:02:26.3]} 20... dxe4 {[%clk 0:02:09.7]} 21.
Nxe4 {[%clk 0:02:27.2]} 21... Nb6 {[%clk 0:02:03.6]} 22. Nf6+ {[%clk 0:02:23.6]}
22... Kg7 {[%clk 0:01:59.5]} 23. d5 {[%clk 0:02:12.6]} 23... Bd7 {[%clk
0:01:52.9]} 24. Nc7 {[%clk 0:02:09.4]} 24... Rc8 {[%clk 0:01:48.4]} 25. d6
{[%clk 0:02:08.7]} 25... Nf5 {[%clk 0:01:39.9]} 26. Qc3 {[%clk 0:02:06.3]} 26...
Kh6 {[%clk 0:01:38.2]} 27. Nxd7 {[%clk 0:01:53.6]} 27... Qxd7 {[%clk 0:01:33]}
28. Rxf5 {[%clk 0:01:51.6]} 28... gxf5 {[%clk 0:01:31.2]} 29. Qe3+ {[%clk
0:01:50.1]} 29... Kh7 {[%clk 0:01:29.8]} 30. Qxb6 {[%clk 0:01:49.1]} 30... Rg8
{[%clk 0:01:23]} 31. Qf2 {[%clk 0:01:42.2]} 31... Qxd6 {[%clk 0:01:17.9]} 32.
Qxf5+ {[%clk 0:01:41.1]} 32... Qg6 {[%clk 0:01:16.8]} 33. Be4 {[%clk 0:01:37.3]}
33... Kh6 {[%clk 0:01:08.3]} 34. Qxg6+ {[%clk 0:01:28.9]} 34... fxg6 {[%clk
0:01:08.2]} 35. Rc4 {[%clk 0:01:27.3]} 35... Rg7 {[%clk 0:01:07.8]} 36. Ne6
{[%clk 0:01:23.7]} 36... Rxc4 {[%clk 0:01:06]} 37. bxc4 {[%clk 0:01:24.6]} 37...
Re7 {[%clk 0:01:02.1]} 38. Bd5 {[%clk 0:01:24.3]} 38... b6 {[%clk 0:01:01.1]}
39. h4 {[%clk 0:01:22.7]} 39... Kh7 {[%clk 0:00:54.5]} 40. Kf2 {[%clk
0:01:21.7]} 40... Kh6 {[%clk 0:00:54.9]} 41. Ke3 {[%clk 0:01:21]} 41... Rf7
{[%clk 0:00:55.3]} 42. Nf4 {[%clk 0:01:18.8]} 42... Re7+ {[%clk 0:00:54.4]} 43.
Be6 {[%clk 0:01:18.1]} 43... Rc7 {[%clk 0:00:53.9]} 44. Ke4 {[%clk 0:01:16.8]}
44... g5 {[%clk 0:00:53.4]} 45. hxg5+ {[%clk 0:01:16.3]} 45... Kxg5 {[%clk
0:00:53.8]} 46. Ke5 {[%clk 0:01:15.4]} 46... Rc5+ {[%clk 0:00:53.2]} 47. Ke4
{[%clk 0:01:14.9]} 47... h4 {[%clk 0:00:48.7]} 48. gxh4+ {[%clk 0:01:13.8]}
48... Kxh4 {[%clk 0:00:48.9]} 49. Bd5 {[%clk 0:01:13]} 49... Kg4 {[%clk
0:00:47]} 50. Ne6 {[%clk 0:01:11]} 50... Rc8 {[%clk 0:00:46.3]} 51. Ke5 {[%clk
0:01:10.2]} 51... Rh8 {[%clk 0:00:38.9]} 52. Bc6 {[%clk 0:01:07.2]} 52... Rh2
{[%clk 0:00:38.1]} 53. Bb5 {[%clk 0:01:06.2]} 53... Re2+ {[%clk 0:00:35.9]} 54.
Kd6 {[%clk 0:01:05.5]} 54... Rd2+ {[%clk 0:00:36.1]} 55. Kc6 {[%clk 0:01:04.6]}
55... Kf5 {[%clk 0:00:36.4]} 56. Nc7 {[%clk 0:01:03.5]} 56... Ke5 {[%clk
0:00:34.5]} 57. Nd5 {[%clk 0:01:03.1]} 57... Kd4 {[%clk 0:00:28.6]} 58. Kxb6
{[%clk 0:01:01.8]} 58... Rh2 {[%clk 0:00:28.8]} 59. Kxa5 {[%clk 0:01:00.7]}
59... Kc5 {[%clk 0:00:28.6]} 60. Nb4 {[%clk 0:00:58.1]} 60... Rh8 {[%clk
0:00:26.4]} 61. Na6+ {[%clk 0:00:57.3]} 61... Kd6 {[%clk 0:00:26.7]} 62. c5+
{[%clk 0:00:56.8]} 62... Kd5 {[%clk 0:00:25.6]} 63. c6 {[%clk 0:00:56.3]} 63...
Kd6 {[%clk 0:00:24.3]} 64. Kb6 {[%clk 0:00:55.4]} 64... Rh2 {[%clk 0:00:19.5]}
65. Nc5 {[%clk 0:00:53.5]} 65... Rc2 {[%clk 0:00:17.1]} 66. Nb7+ {[%clk
0:00:51.7]} 66... Kd5 {[%clk 0:00:16.1]} 67. a5 {[%clk 0:00:50.9]} 67... Rb2
{[%clk 0:00:15.9]} 68. a6 {[%clk 0:00:50.5]} 1-0

[Event "*** Titled Tuesday Blitz"]
[Site "Chess.com"]
[Date "2020.04.21"]
[Round "2"]
[White "AleksanderHnydiuk"]
[Black "pheonixking2000"]
[Result "0-1"]
[WhiteElo "2559"]
[BlackElo "2810"]
[TimeControl "180+1"]
[EndTime "10:18:19 PDT"]
[Termination "pheonixking2000 won by resignation"]

1. Nf3 {[%clk 0:03:00.9]} 1... Nf6 {[%clk 0:02:58]} 2. c4 {[%clk 0:03:00.4]}
2... e6 {[%clk 0:02:54.1]} 3. g3 {[%clk 0:02:59.8]} 3... b6 {[%clk 0:02:51.6]}
4. Bg2 {[%clk 0:02:58.9]} 4... Bb7 {[%clk 0:02:51.7]} 5. O-O {[%clk 0:02:59.4]}
5... Be7 {[%clk 0:02:51.4]} 6. Nc3 {[%clk 0:02:59.5]} 6... O-O {[%clk
0:02:50.3]} 7. Re1 {[%clk 0:02:59.7]} 7... d5 {[%clk 0:02:48.8]} 8. cxd5 {[%clk
0:03:00.6]} 8... exd5 {[%clk 0:02:49.1]} 9. d4 {[%clk 0:03:00.4]} 9... Na6
{[%clk 0:02:49.6]} 10. Bf4 {[%clk 0:02:59.9]} 10... c5 {[%clk 0:02:49.7]} 11.
Rc1 {[%clk 0:02:58.7]} 11... Re8 {[%clk 0:02:49.8]} 12. dxc5 {[%clk 0:02:51.1]}
12... bxc5 {[%clk 0:02:46.8]} 13. Qb3 {[%clk 0:02:48]} 13... Qb6 {[%clk
0:02:43.6]} 14. Qxb6 {[%clk 0:02:23.8]} 14... axb6 {[%clk 0:02:43.1]} 15. Ne5
{[%clk 0:01:51.3]} 15... Bd6 {[%clk 0:01:28]} 16. Nc4 {[%clk 0:01:40.7]} 16...
Bxf4 {[%clk 0:01:27.6]} 17. gxf4 {[%clk 0:01:41.6]} 17... Rab8 {[%clk
0:01:24.2]} 18. Nd6 {[%clk 0:01:22.2]} 18... Red8 {[%clk 0:01:23.4]} 19. Nxb7
{[%clk 0:01:20.3]} 19... Rxb7 {[%clk 0:01:24.3]} 20. Red1 {[%clk 0:01:01.2]}
20... Rbd7 {[%clk 0:01:21.5]} 21. Bh3 {[%clk 0:00:55.8]} 21... Re7 {[%clk
0:01:15.4]} 22. e3 {[%clk 0:00:52.7]} 22... g6 {[%clk 0:00:56.1]} 23. Bg2 {[%clk
0:00:51.9]} 23... Nc7 {[%clk 0:00:55.6]} 24. Na4 {[%clk 0:00:46]} 24... Rb8
{[%clk 0:00:55.8]} 25. a3 {[%clk 0:00:40.2]} 25... Kf8 {[%clk 0:00:50.5]} 26. b4
{[%clk 0:00:40.1]} 26... c4 {[%clk 0:00:49.7]} 27. Nc3 {[%clk 0:00:37.6]} 27...
Rd7 {[%clk 0:00:48]} 28. Rd2 {[%clk 0:00:34.4]} 28... Ke7 {[%clk 0:00:36.7]} 29.
Rcd1 {[%clk 0:00:34]} 29... Rbd8 {[%clk 0:00:37.1]} 30. a4 {[%clk 0:00:33.3]}
30... Na6 {[%clk 0:00:25.3]} 31. Nxd5+ {[%clk 0:00:23.6]} 31... Nxd5 {[%clk
0:00:22.5]} 32. Rxd5 {[%clk 0:00:23.5]} 32... Rxd5 {[%clk 0:00:13.8]} 33. Rxd5
{[%clk 0:00:24.4]} 33... Rxd5 {[%clk 0:00:13.4]} 34. Bxd5 {[%clk 0:00:24.9]}
34... c3 {[%clk 0:00:14]} 35. Bb3 {[%clk 0:00:19.5]} 35... Nxb4 {[%clk 0:00:14]}
36. Kf1 {[%clk 0:00:19.2]} 36... c2 {[%clk 0:00:14.1]} 37. Bxc2 {[%clk
0:00:18.6]} 37... Nxc2 {[%clk 0:00:15]} 38. Ke2 {[%clk 0:00:19.2]} 38... Kd6
{[%clk 0:00:13.2]} 39. Kd3 {[%clk 0:00:19.4]} 39... Ne1+ {[%clk 0:00:12.9]} 40.
Ke2 {[%clk 0:00:19.2]} 40... Nc2 {[%clk 0:00:13]} 41. Kd3 {[%clk 0:00:19.3]}
41... Nb4+ {[%clk 0:00:12.6]} 42. Kc4 {[%clk 0:00:19.6]} 42... Nc6 {[%clk
0:00:12.1]} 43. Kb5 {[%clk 0:00:19.9]} 43... Kc7 {[%clk 0:00:12.6]} 44. Kc4
{[%clk 0:00:20.3]} 44... Ne7 {[%clk 0:00:12.2]} 45. Kd4 {[%clk 0:00:20.3]} 45...
f6 {[%clk 0:00:12.5]} 46. Kc4 {[%clk 0:00:19.9]} 46... Kc6 {[%clk 0:00:12.7]}
47. Kd4 {[%clk 0:00:20]} 47... Nd5 {[%clk 0:00:12.1]} 48. Kc4 {[%clk 0:00:18.9]}
48... Kd6 {[%clk 0:00:11.5]} 49. Kd4 {[%clk 0:00:19]} 49... f5 {[%clk
0:00:10.5]} 50. Kc4 {[%clk 0:00:19]} 50... Nf6 {[%clk 0:00:11.1]} 51. Kb5 {[%clk
0:00:18.7]} 51... Kc7 {[%clk 0:00:11.6]} 52. Kc4 {[%clk 0:00:18.5]} 52... Ne4
{[%clk 0:00:11.4]} 53. Kd4 {[%clk 0:00:15.6]} 53... Nxf2 {[%clk 0:00:09.4]} 54.
Ke5 {[%clk 0:00:15.9]} 54... Ng4+ {[%clk 0:00:09.9]} 0-1

[Event "*** Titled Tuesday Blitz"]
[Site "Chess.com"]
[Date "2020.04.21"]
[Round "2"]
[White "DishonorOnYourCow"]
[Black "aNaartjieZA"]
[Result "0-1"]
[WhiteElo "2300"]
[BlackElo "2583"]
[TimeControl "180+1"]
[EndTime "10:18:19 PDT"]
[Termination "aNaartjieZA won on time"]

1. d4 {[%clk 0:03:00.9]} 1... Nf6 {[%clk 0:02:59.5]} 2. c4 {[%clk 0:03:00.9]}
2... c5 {[%clk 0:02:59.5]} 3. d5 {[%clk 0:03:00]} 3... e5 {[%clk 0:02:59.7]} 4.
Nc3 {[%clk 0:02:57.4]} 4... d6 {[%clk 0:02:59.9]} 5. e4 {[%clk 0:02:57.5]} 5...
Be7 {[%clk 0:02:59.8]} 6. Nf3 {[%clk 0:02:57]} 6... Nbd7 {[%clk 0:03:00.4]} 7.
g3 {[%clk 0:02:56.9]} 7... Nf8 {[%clk 0:03:00.8]} 8. Bg2 {[%clk 0:02:57.1]} 8...
Ng6 {[%clk 0:03:01.1]} 9. O-O {[%clk 0:02:56.5]} 9... h5 {[%clk 0:03:01.7]} 10.
Bg5 {[%clk 0:02:53.4]} 10... Nh7 {[%clk 0:03:00.5]} 11. Be3 {[%clk 0:02:44.7]}
11... h4 {[%clk 0:02:59.2]} 12. Qd2 {[%clk 0:01:45.6]} 12... Nf6 {[%clk
0:02:46.9]} 13. Bg5 {[%clk 0:01:37.2]} 13... hxg3 {[%clk 0:02:39.8]} 14. fxg3
{[%clk 0:01:36.6]} 14... Bh3 {[%clk 0:02:37.4]} 15. Nh4 {[%clk 0:01:27.3]} 15...
Bxg2 {[%clk 0:02:26.9]} 16. Qxg2 {[%clk 0:01:25.6]} 16... Nxh4 {[%clk 0:02:18]}
17. Bxh4 {[%clk 0:01:26.5]} 17... Qd7 {[%clk 0:02:17]} 18. Rab1 {[%clk
0:00:58.4]} 18... Qg4 {[%clk 0:01:59.1]} 19. Nb5 {[%clk 0:00:45.3]} 19... Kd7
{[%clk 0:01:08.2]} 20. h3 {[%clk 0:00:30.2]} 20... Qg6 {[%clk 0:01:03.7]} 21. b4
{[%clk 0:00:22.7]} 21... cxb4 {[%clk 0:01:01.7]} 22. Rxb4 {[%clk 0:00:22.1]}
22... b6 {[%clk 0:00:50.2]} 23. Nc3 {[%clk 0:00:19.4]} 23... Nh5 {[%clk
0:00:35.2]} 24. Bxe7 {[%clk 0:00:16.7]} 24... Kxe7 {[%clk 0:00:35.3]} 25. Rf3
{[%clk 0:00:14.9]} 25... Nf6 {[%clk 0:00:33.5]} 26. a4 {[%clk 0:00:14.2]} 26...
Rab8 {[%clk 0:00:28.2]} 27. Re3 {[%clk 0:00:12.6]} 27... Qh6 {[%clk 0:00:25.6]}
28. Rf3 {[%clk 0:00:12]} 28... Qxh3 {[%clk 0:00:23.9]} 29. Qxh3 {[%clk
0:00:12.9]} 29... Rxh3 {[%clk 0:00:22.7]} 30. Kg2 {[%clk 0:00:13.8]} 30... Rbh8
{[%clk 0:00:20.6]} 31. Rf1 {[%clk 0:00:10.4]} 31... Rh2+ {[%clk 0:00:18.6]} 32.
Kf3 {[%clk 0:00:10.7]} 32... Rc2 {[%clk 0:00:18.3]} 33. Nb5 {[%clk 0:00:10.6]}
33... a5 {[%clk 0:00:11.4]} 34. Rb3 {[%clk 0:00:09.9]} 34... Rxc4 {[%clk
0:00:11]} 35. Na7 {[%clk 0:00:09.2]} 35... Nxe4 {[%clk 0:00:08.6]} 36. Nc6+
{[%clk 0:00:08.5]} 36... Kd7 {[%clk 0:00:07.5]} 37. Rxb6 {[%clk 0:00:05.2]}
37... Nd2+ {[%clk 0:00:07.1]} 38. Ke2 {[%clk 0:00:05.2]} 38... Kc7 {[%clk
0:00:04.1]} 39. Ra6 {[%clk 0:00:02.2]} 39... Nxf1 {[%clk 0:00:03.8]} 40. Ra7+
{[%clk 0:00:02.1]} 40... Kb6 {[%clk 0:00:04]} 41. Kxf1 {[%clk 0:00:01.7]} 41...
Kc5 {[%clk 0:00:04.3]} 42. Rxa5+ {[%clk 0:00:01.5]} 42... Kb6 {[%clk 0:00:03.9]}
43. Rb5+ {[%clk 0:00:02.4]} 43... Ka6 {[%clk 0:00:03.8]} 44. Nb4+ {[%clk
0:00:01.8]} 44... Ka7 {[%clk 0:00:03.6]} 45. Nc6+ {[%clk 0:00:01.4]} 45... Ka6
{[%clk 0:00:02.4]} 0-1